Cogmind - Beta 11.1 *** ADVENTURER MODE // 2022.11.10 @ 19:53:34 Player: WimP_Lo Result: Self-destructed Performance ------------- Evolutions (4) 2000 Regions Visited (12) 2400 Robots Destroyed (102) 510 Value Destroyed (3770) 3770 Prototype IDs (16) 320 Alien Tech Used (0) 0 Bonus (1251) 1251 TOTAL SCORE: 10251 Bonus ------- High Alert Combat Kills 49 Follower Combat Kills 402 Entered DSFs 500 Aligned with FarCom 300 Cogmind --------- Core Integrity 710/850 Matter 189/300 Energy 7/100 System Corruption 1% Temperature Cool (0) Movement Treading (155) Location -6/DSF Parts ------- > --- POWER (2) -------- (None) > --- PROPULSION (4) --- Advanced Treads Medium Treads Medium Treads > --- UTILITY (7) ------ Improved Signal Interpreter Hacking Suite > --- WEAPON (2) ------- (None) > --- INVENTORY (5) ---- Wheel High-capacity Battery (250) Peak State ------------ > --- POWER ------------ Nuclear Core Nuclear Core > --- PROPULSION ------- Gravmag System Gravmag System Gravmag System > --- UTILITY ---------- Improved Signal Interpreter Matter Filter Improved Light Armor Plating Hacking Suite System Shield System Restoration Module > --- WEAPON ----------- Advanced Assault Cannon Power Maul > --- INVENTORY -------- High-capacity Battery Transmission Jammer Shock Rifle Missile Launcher [Rating: 47] Favorites ----------- Power Nuclear Core Engine Ion Engine Power Core Nuclear Core Propulsion Gravmag System Treads Armored Treads Leg Aluminum Leg Wheel Wheel Hover Unit Gravmag System Flight Unit VTOL Module Utility Improved Signal Interpreter Device Weight Redist. System Storage Small Storage Unit Processor Improved Signal Interpreter Hackware Hacking Suite Protection Improved Light Armor Plating Weapon Shotgun Energy Gun Small Laser Energy Cannon Cooled Plasma Cannon Ballistic Gun Shotgun Ballistic Cannon Advanced Assault Cannon Launcher Missile Launcher Special Weapon Remote Datajack Impact Weapon Power Maul Slashing Weapon Greatsword Special Melee Weapon Datajack Build | -11 -10 -9 -9 -9 -8 -8 -8 -7 -7 -7 -6 -6 ------- Run | Scr Mat Mat Min Exi Min Mat Sto Fac Low Low Fac DSF Slots Evolved 8 | . . 2 . . . 2 . 2 . . 2 . Power 1 | . . . . . . . . 1 . . . . Propulsion 2 | . . 1 . . . . . . . . 1 . Utility 5 | . . 1 . . . 2 . 1 . . 1 . Weapon . | . . . . . . . . . . . . . Parts Attached 179 | 6 13 13 2 1 2 31 28 62 9 8 1 3 Power 20 | 1 . 2 . 1 . 2 5 8 . 1 . . Engine 8 | 1 . 2 . 1 . 1 1 1 . 1 . . Core 12 | . . . . . . 1 4 7 . . . . Reactor . | . . . . . . . . . . . . . Propulsion 40 | 2 4 2 1 . . 7 2 15 1 2 1 3 Treads 10 | . . . . . . 3 2 . . 1 1 3 Leg 5 | . . . . . . . . 5 . . . . Wheel 7 | 2 . 1 1 . . . . 1 1 1 . . Hover 9 | . . . . . . 4 . 5 . . . . Flight 9 | . 4 1 . . . . . 4 . . . . Utility 57 | 1 2 2 1 . 1 13 11 22 3 1 . . Device 41 | . 1 2 1 . . 9 7 18 2 1 . . Storage 1 | 1 . . . . . . . . . . . . Processor 4 | . . . . . . 3 1 . . . . . Hackware 3 | . . . . . . . 1 2 . . . . Protection 8 | . 1 . . . 1 1 2 2 1 . . . Artifact . | . . . . . . . . . . . . . Weapon 62 | 2 7 7 . . 1 9 10 17 5 4 . . Energy Gun 15 | 2 5 2 . . 1 2 3 . . . . . Energy Cannon 2 | . . . . . . . 1 1 . . . . Ballistic Gun 16 | . . 4 . . . 6 3 . 1 2 . . Ballistic Cannon 11 | . . . . . . . 1 9 1 . . . Launcher 7 | . 1 1 . . . . 1 1 1 2 . . Special Weapon 1 | . . . . . . . . 1 . . . . Impact Weapon 8 | . . . . . . 1 1 5 1 . . . Slashing Weapon 1 | . . . . . . . . . 1 . . . Piercing Weapon . | . . . . . . . . . . . . . Special Melee Weapon 1 | . 1 . . . . . . . . . . . Unidentified Prototypes 5 | . . . . . . 2 3 . . . . . Parts Lost 36 | . . 2 . . . 2 11 10 2 4 . 5 Power 6 | . . . . . . . 2 2 . 1 . 1 Propulsion 11 | . . 1 . . . 2 2 3 1 1 . 1 Utility 13 | . . 1 . . . . 3 5 1 1 . 2 Weapon 6 | . . . . . . . 4 . . 1 . 1 Highest Loss Streak 4 | . . 1 . . . 1 2 2 2 3 . 4 To Critical Strikes . | . . . . . . . . . . . . . Average Slot Usage (%) 81 | . 76 71 100 100 100 87 77 79 82 79 53 51 Engine 3 | . 14 11 11 11 11 4 . 1 . 5 . . Core 6 | . . . . . . 4 8 9 7 7 6 3 Treads 2 | . . . . . . 7 8 . . . 6 23 Leg 1 | . . . . . . . . 7 . . . . Wheel 2 | . . 1 11 11 11 . . . 4 1 6 1 Hover 6 | . . . . . . 10 4 4 16 6 . . Flight 4 | . 27 20 22 22 22 . . 2 . . . . Device 19 | . 11 9 22 22 22 24 19 23 13 13 6 2 Processor 8 | . . . . . . 17 13 7 7 7 6 6 Hackware 4 | . . . . . . . 2 7 8 7 6 6 Protection 6 | . 1 11 11 11 11 2 2 . 14 14 6 2 Energy Gun 4 | . 19 11 11 11 11 5 6 . . . . . Ballistic Gun 4 | . . 5 11 11 11 8 7 . . 5 . . Ballistic Cannon 3 | . . . . . . . . 7 4 5 . . Naked Turns . | . . . . . . . . . . . . . Heaviest Build 33 | 13 13 11 11 11 12 18 22 33 33 30 15 15 Greatest Support 101 | 3 20 18 14 14 14 28 26 27 27 18 23 101 Greatest Overweight (x) 4 | 4 2 1 . . . 1 2 2 1 3 . . Average Overweight (x) . | 2 . . . . . . . . . 2 . . Largest Inventory Capacity 8 | 8 8 5 5 5 5 5 5 5 5 5 5 5 Average Capacity 5 | 6 5 5 5 5 5 5 5 5 5 5 5 5 Most Carried 5 | 5 5 5 5 5 5 5 5 5 5 5 1 2 Average Carried 4 | 3 4 4 4 4 4 4 4 4 4 3 1 1 Final Capacity 8 | 8 5 5 5 5 5 5 5 5 5 5 5 5 Final Carried 5 | 4 5 5 5 5 5 4 5 4 5 2 1 2 Class Distribution -------------------- 43% | Hacker-Mutant 27% | Mutant 14% | Scavenger-Mutant 5% | Scavenger-Scout 4% | Scavenger-Skirmisher Dominant Class ---------------- Mutant | -10/Materials Mutant | -9/Materials Mutant | -9/Mines Mutant | -9/Exiles Mutant | -8/Mines Mutant | -8/Materials Mutant | -8/Storage Scavenger-Mutant | -7/Factory Hacker-Mutant | -7/Lower Caves Hacker-Mutant | -7/Lower Caves Hacker-Mutant | -6/Factory Hacker-Mutant | -6/DSF Resources | -11 -10 -9 -9 -9 -8 -8 -8 -7 -7 -7 -6 -6 ----------- Run | Scr Mat Mat Min Exi Min Mat Sto Fac Low Low Fac DSF Matter Collected 2840 | 227 93 343 27 . 32 361 518 845 191 182 . 21 Remotely . | . . . . . . . . . . . . . Salvage Created 3759 | . 122 529 52 . 43 851 1111 666 60 183 . 142 Parts 205 | . 9 34 7 . . 41 52 43 6 8 . 5 Haulers Intercepted 1 | . . 1 . . . . . . . . . . Recyclers Shooed 2 | . . . . . . 1 1 . . . . . Parts Field Recycled . | . . . . . . . . . . . . . Retrieved Matter . | . . . . . . . . . . . . . Parts Self-Destructed 13 | . . . . . . . . . 5 8 . . Prevented . | . . . . . . . . . . . . . Kills | -11 -10 -9 -9 -9 -8 -8 -8 -7 -7 -7 -6 -6 ------- Run | Scr Mat Mat Min Exi Min Mat Sto Fac Low Low Fac DSF Combat Hostiles Destroyed 82 | . 3 10 . . 1 15 25 18 5 4 . 1 Melee 11 | . . . . . . 5 2 4 . . . . Guns 38 | . 3 10 . . 1 5 19 . . . . . Cannons 15 | . . . . . . . . 12 . 3 . . AOE 7 | . . . . . . . . 1 4 1 . 1 Classes Destroyed 16 | . 2 7 . . . 1 2 2 1 . . 1 Worker 3 | . . 1 . . . 1 . 1 . . . . Builder 2 | . . 2 . . . . . . . . . . Tunneler 6 | . . 2 3 . . . . 1 . . . . Hauler 1 | . . 1 . . . . . . . . . . Recycler 2 | . 1 . . . . . . 1 . . . . Operator 1 | . . . . . . . 1 . . . . . Watcher 5 | . . . . . . 4 1 . . . . . Swarmer 17 | . 3 . . . . 1 3 6 4 . . . Grunt 32 | . . 5 . . 1 7 13 3 . 3 . . Brawler 1 | . . . . . . . 1 . . . . . Duelist 1 | . . 1 . . . . . . . . . . Sentry 22 | . . 4 . . . 7 8 2 . 1 . . Specialist 1 | . . . . . . . . . . . . 1 Hunter 2 | . . . . . . . . 2 . . . . Programmer 5 | . . . . . . . . 5 . . . . Master Thief 1 | . . . . . . . . . 1 . . . Best Kill Streak 10 | . 4 10 3 . 1 4 3 3 4 3 . 1 Combat Bots Only 6 | . 3 6 . . 1 4 3 3 4 3 . 1 Max Kills in Single Turn 2 | . 1 2 1 . 1 1 2 1 2 1 . 1 Gunslinging 1 | . . 1 . . . . 1 . . . . . Exploded 2 | . . . . . . . . 1 2 1 . 1 Melee 1 | . . . . . . 1 1 1 . . . . Uniques/NPCs Destroyed . | . . . . . . . . . . . . . Combat | -11 -10 -9 -9 -9 -8 -8 -8 -7 -7 -7 -6 -6 -------- Run | Scr Mat Mat Min Exi Min Mat Sto Fac Low Low Fac DSF Damage Taken 4598 | . 19 446 . . 12 482 1090 1274 162 559 . 554 Core 1009 | . . 112 . . . 153 198 300 4 102 . 140 Absorbed by Shields . | . . . . . . . . . . . . . Redirected to Shielding 108 | . . 20 . . . 31 . . 27 18 . 12 Regen/Repaired (Parts) 307 | . . . . . . 117 147 43 . . . . Core Remaining (%) 70 | 100 100 . . . 72 . 36 . . 42 . . Volleys Fired 254 | . 18 50 16 . 3 26 66 40 4 26 . 5 Largest 2 | . 2 2 1 . 2 2 2 2 1 2 . 1 Hottest 92 | . 90 70 40 . 63 90 90 92 36 81 . 36 Shots Fired 421 | . 36 80 16 . 6 44 120 71 4 39 . 5 Gun 327 | . 35 75 16 . 6 44 119 . . 32 . . Cannon 74 | . . . . . . . 1 67 . 6 . . Launcher 19 | . 1 5 . . . . . 3 4 1 . 5 Special 1 | . . . . . . . . 1 . . . . Kinetic 205 | . . 25 . . 3 25 62 52 . 38 . . Thermal 196 | . 35 50 16 . 3 19 58 15 . . . . Explosive 19 | . 1 5 . . . . . 3 4 1 . 5 Electromagnetic . | . . . . . . . . . . . . . Robot Hit Streak 34 | . 5 13 16 . 6 17 34 24 . 8 . 10 Robot Miss Streak 5 | . 1 3 1 . 1 3 2 3 1 5 . . Penetration Max . | . . . . . . . . . . . . . Secondary Targets 2 | . . 1 . . . . 1 . . . . . Max Gunslinging Chain 1 | . . 1 . . . . 1 . . . . . Shots Hit Robots 359 | . 8 59 15 . 6 56 121 59 2 29 . 4 Core Hits 173 | . 5 31 5 . 2 25 42 26 7 10 . 20 Critical Kills 3 | . . . . . . . 1 2 . . . . Critical Parts Destroyed 10 | . . . . . . 4 4 2 . . . . Critical Strikes 17 | . . 1 . . . 5 6 5 . . . . Burn 3 | . . 1 . . . 1 1 . . . . . Blast 1 | . . . . . . . . 1 . . . . Smash 13 | . . . . . . 4 5 4 . . . . Melee Attacks 63 | . . . . . . 25 20 14 4 . . . Impact 63 | . . . . . . 25 20 14 4 . . . Slashing . | . . . . . . . . . . . . . Piercing . | . . . . . . . . . . . . . Sneak Attacks . | . . . . . . . . . . . . . Combat Hostiles . | . . . . . . . . . . . . . Follow-up Attacks . | . . . . . . . . . . . . . Damage Inflicted 8573 | . 96 803 161 . 86 1360 2415 1933 312 636 . 771 Guns 3833 | . 96 719 161 . 86 544 1728 . . 499 . . Cannons 1428 | . . . . . . . . 1300 . 128 . . Explosions 1250 | . . 84 . . . . . 159 227 9 . 771 Melee 2030 | . . . . . . 802 687 456 85 . . . Ramming 32 | . . . . . . 14 . 18 . . . . Kinetic 3253 | . . 306 . . 52 338 962 968 . 627 . . Thermal 2008 | . 96 413 161 . 34 206 766 332 . . . . Explosive 1250 | . . 84 . . . . . 159 227 9 . 771 Electromagnetic . | . . . . . . . . . . . . . Impact 2030 | . . . . . . 802 687 456 85 . . . Slashing . | . . . . . . . . . . . . . Piercing . | . . . . . . . . . . . . . Highest Corruption 1 | . . . . . . . . 1 . . . 1 Average Corruption 1 | . . . . . . . . 1 . . . 1 Corruption Purged 1 | . . . . . . . . 1 . . . . Corruption Blocked . | . . . . . . . . . . . . . Effects 12 | . . . . . . . . 12 . . . . Message Errors 3 | . . . . . . . . 3 . . . . Matter Fused 2 | . . . . . . . . 2 . . . . Heat Flow Errors 4 | . . . . . . . . 4 . . . . Data Loss (minor) 1 | . . . . . . . . 1 . . . . Misfires 1 | . . . . . . . . 1 . . . . Alerts 1 | . . . . . . . . 1 . . . . Overload Shots . | . . . . . . . . . . . . . Overflow Damage 585 | . . . . . . 171 171 210 12 . . 21 Projectiles 21 | . . . . . . . . 21 . . . . Explosions 31 | . . . . . . . . . 10 . . 21 Melee 533 | . . . . . . 171 171 189 2 . . . Knockbacks 17 | . . . . . . 4 1 10 . 2 . . Impact 5 | . . . . . . 4 1 . . . . . Kinetic 12 | . . . . . . . . 10 . 2 . . Secondary . | . . . . . . . . . . . . . Self-Inflicted Damage 62 | . . 10 . . . 7 . 9 36 . . . Shots 3 | . . 2 . . . . . . 1 . . . Rammed 2 | . . . . . . 1 . 1 . . . . Targets Rammed 2 | . . . . . . 1 . 1 . . . . Kicked . | . . . . . . . . . . . . . Crushed . | . . . . . . . . . . . . . Highest Temperature 295 | . 270 125 3 . 2 118 295 269 . . . . Average Temperature 81 | . 140 33 1 . 2 46 96 67 . . . . Received Heat Transfer 1569 | . . 246 . . 9 189 558 210 . 279 . 78 Effects 1 | . . . . . . . 1 . . . . . Energy Bleed 1 | . . . . . . . 1 . . . . . Siege Activations . | . . . . . . . . . . . . . Robots Corrupted . | . . . . . . . . . . . . . Combat Hostiles . | . . . . . . . . . . . . . Parts Fried 14 | . . . . . . 5 3 1 5 . . . Impact Corruptions 25 | . . . . . . 10 8 6 1 . . . Robots Melted . | . . . . . . . . . . . . . Combat Hostiles . | . . . . . . . . . . . . . Parts Melted 5 | . . . 1 . 1 1 2 . . . . . Heat Transferred 4638 | . 260 1023 375 . 75 555 1850 500 . . . . Parts Sabotaged . | . . . . . . . . . . . . . Parts Stolen 5 | . . . . . . . . . 1 4 . . Parts Stripped . | . . . . . . . . . . . . . Power Chain Reactions . | . . . . . . . . . . . . . Missiles Intercepted . | . . . . . . . . . . . . . Alert | -11 -10 -9 -9 -9 -8 -8 -8 -7 -7 -7 -6 -6 ------- Run | Scr Mat Mat Min Exi Min Mat Sto Fac Low Low Fac DSF Peak Influence 583 | . 228 511 263 . 74 379 583 278 . . 11 44 Initial 168 | . . 81 168 . . 24 65 150 . . 11 6 Average 174 | . 90 254 191 . 50 219 263 100 . . 11 18 Maximum Alert Level 2 | . 1 2 1 . . 1 2 1 . . . . Low Security (%) 66 | 100 97 37 63 . 100 49 40 90 . . 100 100 Level 1 28 | . 2 34 36 . . 50 43 9 . . . . Level 2 5 | . . 27 . . . . 15 . . . . . Level 3 . | . . . . . . . . . . . . . Level 4 . | . . . . . . . . . . . . . Level 5 . | . . . . . . . . . . . . . High Security . | . . . . . . . . . . . . . Max Security . | . . . . . . . . . . . . . Squads Dispatched 23 | . . 1 . . . 3 8 9 . . . 2 Investigation 5 | . . . . . . 1 2 2 . . . . Extermination 3 | . . . . . . . . 3 . . . . Reinforcement 10 | . . 1 . . . 2 1 4 . . . 2 Assault 1 | . . . . . . . 1 . . . . . Garrison 4 | . . . . . . . 4 . . . . . Intercept . | . . . . . . . . . . . . . Searches Triggered . | . . . . . . . . . . . . . Construction Impeded . | . . . . . . . . . . . . . Haulers Reinforced . | . . . . . . . . . . . . . Active Scanning Responses . | . . . . . . . . . . . . . Cargo Convoy Interrupts . | . . . . . . . . . . . . . Stealth | -11 -10 -9 -9 -9 -8 -8 -8 -7 -7 -7 -6 -6 --------- Run | Scr Mat Mat Min Exi Min Mat Sto Fac Low Low Fac DSF Distress Signals 6 | . 1 2 . . . 2 1 . . . . . Communications Jammed 1 | . . . . . . . . . . 1 . . Distress Signals 1 | . . . . . . . . . . 1 . . Times Spotted 161 | . 8 23 4 . 3 26 40 35 8 8 . 6 Peak Tracking Total 10 | . 7 6 3 . 3 10 4 4 4 4 . 5 Tactical Retreats 17 | . 2 3 . . . 1 3 6 1 . . 1 Traps | -11 -10 -9 -9 -9 -8 -8 -8 -7 -7 -7 -6 -6 ------- Run | Scr Mat Mat Min Exi Min Mat Sto Fac Low Low Fac DSF Traps Triggered 13 | . . . . . . 2 2 9 . . . . Indirectly . | . . . . . . . . . . . . . Trap Hack Attempts . | . . . . . . . . . . . . . Triggered . | . . . . . . . . . . . . . Disarmed . | . . . . . . . . . . . . . Reprogrammed . | . . . . . . . . . . . . . Reused 3 | . . . . . . 1 1 1 . . . . Traps Reconfigurated 21 | . . . . . . 9 7 5 . . . . Traps Extracted . | . . . . . . . . . . . . . Installed . | . . . . . . . . . . . . . Triggered 3 | . . . . . . 1 1 1 . . . . Machines | -11 -10 -9 -9 -9 -8 -8 -8 -7 -7 -7 -6 -6 ---------- Run | Scr Mat Mat Min Exi Min Mat Sto Fac Low Low Fac DSF Machines Disabled 7 | . . 1 . . . . 3 3 . . . . Max in Single Turn 2 | . . 1 . . . . 1 2 . . . . Garrison Access 1 | . . . . . . . 1 . . . . . Machines Sabotaged . | . . . . . . . . . . . . . Garrisons Compromised . | . . . . . . . . . . . . . Overloaded Fab Kills . | . . . . . . . . . . . . . Hacking | -11 -10 -9 -9 -9 -8 -8 -8 -7 -7 -7 -6 -6 --------- Run | Scr Mat Mat Min Exi Min Mat Sto Fac Low Low Fac DSF Machines Accessed 42 | . 9 2 . 4 . 6 11 8 1 . 1 . Terminals 27 | . 7 2 . . . 3 8 6 . . 1 . Fabricators 1 | . . . . . . . . 1 . . . . Repair Stations 5 | . . . . . . 2 2 1 . . . . Recycling Units 3 | . 2 . . . . . 1 . . . . . Scanalyzers 1 | . . . . . . 1 . . . . . . Garrison Access . | . . . . . . . . . . . . . Total Hacks 150 | . 19 6 . 49 . 17 41 16 1 . 1 . Successful 124 | . 11 6 . 49 . 11 31 14 1 . 1 . Failed 26 | . 8 . . . . 6 10 2 . . . . Catastrophic 1 | . . . . . . . 1 . . . . . Database Lockouts . | . . . . . . . . . . . . . Manual 3 | . . . . 1 . . 2 . . . . . Terminals 81 | . 17 6 . . . 9 35 13 . . 1 . Fabricators 1 | . . . . . . . . 1 . . . . Repair Stations 13 | . . . . . . 6 5 2 . . . . Recycling Units 3 | . 2 . . . . . 1 . . . . . Scanalyzers 2 | . . . . . . 2 . . . . . . Garrison Access . | . . . . . . . . . . . . . Terminal Hacks 106 | . 9 6 . 49 . 4 25 11 1 . 1 . Record 69 | . 1 . . 49 . . 17 2 . . . . Robot Analysis 1 | . . . . . . . 1 . . . . . Prototype ID Bank 5 | . 2 1 . . . . 1 1 . . . . Open Door 3 | . . . . . . . 2 . 1 . . . Open DSF 5 | . . . . . . . . 4 . . 1 . Level Access Points 1 | . . . . . . . 1 . . . . . Branch Access Points 2 | . . 1 . . . 1 . . . . . . Terminal Index 1 | . 1 . . . . . . . . . . . Scanalyzer Index 1 | . . . . . . . . 1 . . . . Alert Level 3 | . . 1 . . . 1 . 1 . . . . Unreport Threat 2 | . . 1 . . . . . 1 . . . . Locate Traps 6 | . 4 . . . . 1 1 . . . . . Dispatch Records 1 | . . 1 . . . . . . . . . . Assault Status 1 | . . . . . . . 1 . . . . . Recall Investigation 1 | . . . . . . . 1 . . . . . Hauler Manifests 1 | . . . . . . . . 1 . . . . Zone Layout 3 | . 1 1 . . . 1 . . . . . . Fabricator Hacks 1 | . . . . . . . . 1 . . . . Network Status 1 | . . . . . . . . 1 . . . . Repair Station Hacks 12 | . . . . . . 5 5 2 . . . . Scan Component 7 | . . . . . . 3 3 1 . . . . Repair 5 | . . . . . . 2 2 1 . . . . Recycling Unit Hacks 3 | . 2 . . . . . 1 . . . . . Report Inventory 3 | . 2 . . . . . 1 . . . . . Scanalyzer 2 | . . . . . . 2 . . . . . . Insert Component 2 | . . . . . . 2 . . . . . . Garrison Access Hacks . | . . . . . . . . . . . . . Unauthorized Hacks . | . . . . . . . . . . . . . Terminals . | . . . . . . . . . . . . . Fabricators . | . . . . . . . . . . . . . Repair Stations . | . . . . . . . . . . . . . Recycling Units . | . . . . . . . . . . . . . Scanalyzers . | . . . . . . . . . . . . . Garrison Access . | . . . . . . . . . . . . . Data Cores Recovered . | . . . . . . . . . . . . . Used . | . . . . . . . . . . . . . Hacking Detections 20 | . 6 1 . . . 6 5 2 . . . . Full Trace Events 5 | . . . . . . 1 3 1 . . . . Feedback Events 1 | . . . . . . . 1 . . . . . Hackware Fried 1 | . . . . . . . 1 . . . . . Feedback Blocked . | . . . . . . . . . . . . . Robot Schematics Acquired . | . . . . . . . . . . . . . Robots Built . | . . . . . . . . . . . . . Authchips . | . . . . . . . . . . . . . Time . | . . . . . . . . . . . . . Total Robot Build Rating . | . . . . . . . . . . . . . Part Schematics Acquired . | . . . . . . . . . . . . . Parts Built . | . . . . . . . . . . . . . Authchips . | . . . . . . . . . . . . . Time . | . . . . . . . . . . . . . Total Part Build Rating . | . . . . . . . . . . . . . Parts Repaired 5 | . . . . . . 2 2 1 . . . . Time 162 | . . . . . . 70 54 38 . . . . Parts Recycled . | . . . . . . . . . . . . . Recycled Matter . | . . . . . . . . . . . . . Retrieved Matter . | . . . . . . . . . . . . . Retrieved Components . | . . . . . . . . . . . . . Parts Scanalyzed . | . . . . . . . . . . . . . Part Schematics Acquired . | . . . . . . . . . . . . . Parts Damaged . | . . . . . . . . . . . . . Bothacking | -11 -10 -9 -9 -9 -8 -8 -8 -7 -7 -7 -6 -6 ------------ Run | Scr Mat Mat Min Exi Min Mat Sto Fac Low Low Fac DSF Used RIF Installer . | . . . . . . . . . . . . . Robots Hacked . | . . . . . . . . . . . . . Non-combat . | . . . . . . . . . . . . . Combat . | . . . . . . . . . . . . . Robot Hacks Applied . | . . . . . . . . . . . . . Relay Couplers Released . | . . . . . . . . . . . . . Fabnet Peak Effective % . | . . . . . . . . . . . . . Robots Rewired . | . . . . . . . . . . . . . Allies Hacked . | . . . . . . . . . . . . . Hacks Repelled . | . . . . . . . . . . . . . Allies | -11 -10 -9 -9 -9 -8 -8 -8 -7 -7 -7 -6 -6 -------- Run | Scr Mat Mat Min Exi Min Mat Sto Fac Low Low Fac DSF Total Allies 7 | . . . 5 . . . 2 . . . . . Largest Group 5 | . . . 5 4 3 2 2 1 . . . . Highest-Rated Group 116 | . . . 79 71 40 32 116 16 . . . . Highest-Rated Ally 100 | . . . 31 31 16 16 100 16 . . . . Total Orders 1 | . . . . . . 1 . . . . . . EXPLORE 1 | . . . . . . 1 . . . . . . Ally Attacks 62 | . . . 12 . 12 18 18 2 . . . . Total Damage 1403 | . . . 168 . 174 193 855 13 . . . . Kills 15 | . . . 3 . 2 2 8 . . . . . Allies Corrupted . | . . . . . . . . . . . . . Allies Melted . | . . . . . . . . . . . . . Intel | -11 -10 -9 -9 -9 -8 -8 -8 -7 -7 -7 -6 -6 ------- Run | Scr Mat Mat Min Exi Min Mat Sto Fac Low Low Fac DSF Robot Analysis Total 1 | . . . . . . . 1 . . . . . Derelict Logs Recovered 3 | . . . 1 . . . . . 2 . . . Drone Launches 3 | . . . . . . 3 . . . . . . Drone Recoveries 2 | . . . . . . 2 . . . . . . Exploration | -11 -10 -9 -9 -9 -8 -8 -8 -7 -7 -7 -6 -6 ------------- Run | Scr Mat Mat Min Exi Min Mat Sto Fac Low Low Fac DSF Turns Passed 9319 | 111 272 363 471 324 182 1142 1739 2195 1362 1042 6 110 Spaces Moved 8882 | 62 464 431 806 728 353 723 1159 2226 1318 550 3 59 Core 264 | 62 1 . . . . . 92 109 . . . . Treads 517 | . . . . . . 87 328 40 . . 3 59 Legs 763 | . . . . . . . . 763 . . . . Wheels 184 | . 6 24 . . . . . . . 154 . . Hover 3778 | . . . . . . 612 739 713 1318 396 . . Flight 3376 | . 457 407 806 728 353 24 . 601 . . . . Fastest Speed 30 | 50 32 32 37 37 37 37 50 30 52 95 160 155 Average Speed 83 | 158 36 37 37 37 37 107 114 80 100 174 160 156 Slowest Speed 260 | 250 150 112 37 37 37 145 170 260 121 240 160 160 Overloaded Moves . | . . . . . . . . . . . . . Propulsion Burnouts . | . . . . . . . . . . . . . Robots Hopped 20 | . 3 4 5 . 3 . . 5 . . . . Cave-ins Triggered . | . . . . . . . . . . . . . Exploration Rate (%) 64 | 6 72 25 99 94 60 71 86 51 96 59 . 53 Regions Visited 12 Branch Regions 6 Pre-discovered Areas 2 | . . . 1 1 . . . . . . . . Known Exits Taken 7 | . . 1 . . . 1 1 1 1 1 1 . Unknown Exits Taken 5 | 1 1 . 1 1 1 . . . . . . . Scrap Searched 9 | . . . 2 . . . . . 3 4 . . Spaces Dug 7 | . 7 . . . . . . . . . . . Terrain Destroyed 146 | . 7 28 . . . . 1 48 38 5 . 19 Melee . | . . . . . . . . . . . . . Projectile 6 | . . . . . . . 1 5 . . . . AOE 140 | . 7 28 . . . . . 43 38 5 . 19 Terrain Rammed . | . . . . . . . . . . . . . Walls Destroyed . | . . . . . . . . . . . . . Machines Disabled . | . . . . . . . . . . . . . Actions | -11 -10 -9 -9 -9 -8 -8 -8 -7 -7 -7 -6 -6 --------- Run | Scr Mat Mat Min Exi Min Mat Sto Fac Low Low Fac DSF Total 10263 | 76 534 548 958 783 395 1002 1432 2521 1347 593 4 70 Wait 678 | . 18 46 135 49 36 173 129 90 . 2 . . Move 8833 | 61 457 422 795 727 346 722 1158 2217 1317 549 3 59 Hop 18 | . 3 4 5 . 3 . . 3 . . . . Pick Up 90 | 9 8 6 2 3 2 7 15 26 5 4 . 3 Fast Attach 51 | 1 3 2 1 . . 10 7 25 2 . . . Attach 86 | 5 6 7 1 . . 10 16 26 4 8 1 2 Detach 31 | . 5 3 . . . 6 5 8 3 1 . . Swap 43 | . 4 4 . 1 2 11 6 11 3 . . 1 Drop 83 | . 12 4 3 3 3 11 10 29 5 3 . . Fire 254 | . 18 50 16 . 3 26 66 40 4 26 . 5 Melee 63 | . . . . . . 25 20 14 4 . . . Ram 2 | . . . . . . 1 . 1 . . . . Kick . | . . . . . . . . . . . . . Crush . | . . . . . . . . . . . . . Escape Stasis 31 | . . . . . . . . 31 . . . . Rewire . | . . . . . . . . . . . . . Trap . | . . . . . . . . . . . . . Miscellaneous . | . . . . . . . . . . . . . Route ------- -11/Scrapyard -10/Materials (discovered 2 exits: *Mat / [*Min]) -9/Materials -9/Mines (discovered 3 exits: *Mat x2 / *Exi) -9/Exiles (discovered 2 exits: [*Min x2]) -8/Mines -8/Materials (discovered 2 exits: *Fac / *Sto) -8/Storage -7/Factory -7/Lower Caves -7/Lower Caves -6/Factory -6/DSF History --------- Turn | Location | Event 23 | -11/Scrapyard | Discovered new exit (range 15) 112 | -11/Scrapyard | Entered Materials 164 | -10/Materials | Discovered new exit (range 15) 321 | -10/Materials | Build established: Mutant 322 | -10/Materials | Discovered new exit (range 16) 384 | -10/Materials | Entered another Materials area 384 | -9/Materials | Evolved 2 slots: Propulsion x1, Utility x1 611 | -9/Materials | Discovered new exit (range 16) 714 | -9/Materials | Identified exit to Mines 747 | -9/Materials | Entered Mines 776 | -9/Mines | Discovered new exit (range 9) 786 | -9/Mines | Learned Materials emergency access door positions 791 | -9/Mines | Deemed a non-threat by the Exiles lab entrance 791 | -9/Mines | Discovered new exit (range 5) 905 | -9/Mines | Learned location of Storage (-8) 921 | -9/Mines | Assisted by bots powering up and referring to "LRC-V3" 972 | -9/Mines | Discovered new exit (range 9) 1218 | -9/Mines | Entered Exiles 1218 | -9/Exiles | Accompanied by 4 allies 1225 | -9/Exiles | Discovered new exit (range 15) 1232 | -9/Exiles | Met 8R-AWN 1239 | -9/Exiles | Met EX-HEX 1248 | -9/Exiles | Led the pair of lost Derelicts to a safe place 1273 | -9/Exiles | Met EX-DEC 1292 | -9/Exiles | Visited The Gauntlet 1341 | -9/Exiles | Learned location of Zion (-6) 1358 | -9/Exiles | Discovered new exit (range 14) 1390 | -9/Exiles | Met EX-BIN 1396 | -9/Exiles | Aligned with FarCom system 1396 | -9/Exiles | Given EX-Vault access code 1416 | -9/Exiles | Opened EX-Vault 1420 | -9/Exiles | Found Prototype Device 1423 | -9/Exiles | Found Prototype Device 1426 | -9/Exiles | Found Prototype Processor 1435 | -9/Exiles | Warned to stay clear of 0b10 Research branches 1438 | -9/Exiles | Exiles lab attacked by MAIN.C 1542 | -9/Exiles | Stole three prototypes: Trap Reconfigurator, Supersonic Drone Bay, Modified TNC 1542 | -9/Exiles | Entered Mines 1542 | -8/Mines | Accompanied by 3 allies 1656 | -8/Mines | Discovered new exit (range 8) 1724 | -8/Mines | Entered Materials 1724 | -8/Materials | Accompanied by 2 allies 1724 | -8/Materials | Evolved 2 slots: Utility x2 1748 | -8/Materials | Identified Modified TNC 1760 | -8/Materials | Repaired VTOL Module? 2082 | -8/Materials | Repaired Hvy. Mace? 2151 | -8/Materials | Identified Trap Reconfigurator 2151 | -8/Materials | Identified Supersonic Drone Bay 2286 | -8/Materials | Discovered new exit (range 16) 2298 | -8/Materials | Identified exit to Factory 2329 | -8/Materials | Identified exit to Storage 2866 | -8/Materials | Entered Storage 3313 | -8/Storage | Garrison activated, responded to threat 3495 | -8/Storage | Repaired Weight Redist. System? 3828 | -8/Storage | Core integrity fell below 50% 4108 | -8/Storage | Garrison activated, responded to threat 4216 | -8/Storage | Met 01-MTF 4236 | -8/Storage | Build established: Hacker-Mutant 4434 | -8/Storage | Repaired Arm. Treads 4435 | -8/Storage | Hacking Suite fried by hacking feedback 4605 | -8/Storage | Entered Factory 4605 | -7/Factory | Accompanied by 2 allies (01-MTF) 4605 | -7/Factory | Evolved 2 slots: Power x1, Utility x1 4607 | -7/Factory | FarCom data flow suspended 4610 | -7/Factory | 01-MTF left 4729 | -7/Factory | Repaired Assault Cannon 4971 | -7/Factory | Build established: Scavenger-Mutant 6141 | -7/Factory | Build established: Hacker-Mutant 6753 | -7/Factory | Discovered new exit (range 16) 6761 | -7/Factory | Identified exit to Lower Caves 6800 | -7/Factory | Entered Lower Caves 6800 | -7/Lower Caves | Spotted 8A-GRW(f) 6801 | -7/Lower Caves | Encountered a Master Thief 6802 | -7/Lower Caves | Spotted R1-IQD(f) 6803 | -7/Lower Caves | Encountered a Master Thief 6807 | -7/Lower Caves | Destroyed 8A-GRW(f) 6810 | -7/Lower Caves | Nuclear Core stolen by Master Thief 6822 | -7/Lower Caves | Learned Factory emergency access door positions 7213 | -7/Lower Caves | Encountered a Warlord checkpoint 7222 | -7/Lower Caves | Identified exit to Lower Caves 8162 | -7/Lower Caves | Entered another Lower Caves area 8162 | -7/Lower Caves | Discovered new exit (range 12) 8539 | -7/Lower Caves | Identified exit to Factory 8888 | -7/Lower Caves | Encountered a Warlord checkpoint 8989 | -7/Lower Caves | Spotted RH-K0I(f) 8990 | -7/Lower Caves | Encountered a Master Thief 8991 | -7/Lower Caves | Spotted 12-24A(f) 8992 | -7/Lower Caves | Encountered a Master Thief 8992 | -7/Lower Caves | Spotted BC-9J7(f) 8992 | -7/Lower Caves | Spotted Q5-9SD(f) 8993 | -7/Lower Caves | Encountered a Master Thief 8993 | -7/Lower Caves | Encountered a Master Thief 8994 | -7/Lower Caves | Gravmag System stolen by Master Thief 8997 | -7/Lower Caves | Adv. Assault Cannon stolen by Master Thief 9005 | -7/Lower Caves | Transmission Jammer stolen by Master Thief 9024 | -7/Lower Caves | Core integrity fell below 50% 9025 | -7/Lower Caves | Hvy. Battle Rifle stolen by Master Thief 9077 | -7/Lower Caves | Attracted the attention of an 0b10 checkpoint 9130 | -7/Lower Caves | Lost 3 parts (1p1u1w) 9204 | -7/Lower Caves | Entered Factory 9204 | -6/Factory | Evolved 2 slots: Propulsion x1, Utility x1 9210 | -6/Factory | Identified exit to DSF 9210 | -6/Factory | Entered DSF 9246 | -6/DSF | Additional patrols routed to DSF 9303 | -6/DSF | Lost 4 parts (1p2u1w) 9320 | -6/DSF | Self-destructed Last Messages --------------- 09246_ Hostiles detected in DSF, routing additional patrols. 09257_ Slug penetrates Wall. 09261_ Imp. Heat Sink destroyed. 09263_ H-61 Shepherd calls for reinforcements. 09263_ ALERT: Hostile activity reported, dispatching reinforcements to area. 09263_ Propulsion Shielding destroyed. 09263_ Destroyed Adv. Weight Redist. System. 09263_ X-72 Disruptor destroyed. 09265_ Destroyed Mic. Fission Core. 09268_ Penetrated by Slug. 09271_ Missile Launcher destroyed. 09272_ Nuclear Core destroyed. 09274_ Acquired 4 matter. 09275_ Acquired 16 matter. 09277_ Acquired 1 matter. 09279_ Slug penetrates Wall. 09303_ X-72 Disruptor springs to life. 09314_ Imp. Treads destroyed. [Achievement: 10k Club] Map ----- +----------------------------------------------------+ | | | | | | | | | | | | | | | | | | | | | | | | | | | ?????????????????????????????????????????????????? | | ?????????????????????????????????????????????????? | | ?????????????????????????????????????????????????? | | ?????????????????????????????????????????????????? | | ??????????????????????????????????????""?????????? | | ?????????????????????????????????????#"#?????????? | | ????????????????????#########???????##"####??????? | | ????????????????###?# !!!!!#########"""""#??????? | | ???????????"##!!#!!!# !!!!!#!!!#!!##"""""#??????? | | ??????????? ""##"????? | | ??????????? """""????? | | ????????????????#!!!### ###!!!#!!## ""###????? | | ??????????????????????# @#?#!!!#!!### ###??????? | | ????????????????????# ########## ##???????? | | ????????????????????# #??????# !#???????? | | ????????????????????# #??????# ^ !#???????? | | ????????????????????### ###??????### ##???????? | | ??????????????????????] !????????#!! !#???????? | | ?????????????????????]] !????????#!! !#???????? | | ?????????????????????]] !????????#!! !#???????? | | ????????????????????# # A ##???###### ####?????? | | ????????????????????# !!?#===## "#?????? | | ???????????????????? A !!!#==="" "#?????? | | ???????????????????? ? H !!##?????? | | ??????????????????? ! !!#??????? | | ??????????????????? ?A = !!##?????? | | ?????????????????????# !% !!" ## "#?????? | | ?????????????????????? !!# ?# ##?????? | | ??????????????????????? #####?###### ###??????? | | ???????????????????????????????????#== =#???????? | | ???????????????????????????????????#== =#???????? | | ???????????????????????????????????#== =#???????? | | ???????????????????????????????????### ##???????? | | ???????????????????????????????????#== #???????? | | ???????????????????????????????????#== #???????? | | ????????????????????????????###?###### ##???????? | | ??????????????????????#?????#===#==### ###??????? | +----------------------------------------------------+ Best States ------------- Heat Dissipation 61 Coolant Potential 50 Energy Generation 23 Energy Capacity 405 Matter Stores 300 Matter Capacity 300 Sight Range 16 Robot Scan Range 15 Terrain Scan Density 10 ECM Strength 2 Jamming Range 12 Additional Mass Support 6 Armor Coverage 150 Resistance: KI 20 Resistance: TH 20 Resistance: EX 20 Resistance: EM 20 Resistance: I 20 Resistance: S 20 Resistance: P 20 Core Shielding 20 Power Shielding 66 Propulsion Shielding 33 Melee Speed Boost 20 Evasion (%) 64 Recoil Reduction 4 Matter Filtering 30 Offensive Hacking 20 Defensive Hacking 10 Item Schematics ----------------- None Robot Schematics ------------------ None Fabricated ------------ Nothing Alien Tech Used ----------------- None Achievements -------------- 10k Club Cya! Maximum Efficiency The More The Merrier Troublemaker Universal Adapter Challenges ------------ None Game ------ Seed DynamicSurveybotCarapace Manual? 0 Play Time 03:13:59 Cumulative 15.0 hours Start 2022.11.10 @ 10:30:40 End 2022.11.10 @ 19:53:34 Sessions 5 Manual Loads 0 Difficulty Adventurer Special Mode None Game No. 12 Rogue 2 Adventurer 10 Explorer 0 Win Type - Total 0 Types 0/0/0/0/0/0/0/0/0 Lore% 15 Gallery% 13 Achievement% 12 Wizard Run 0 Options --------- ASCII 0 Keyboard 0 Movement Mouse Keybinds 0 Fullscreen 1 Font 18/SmallcapsGlow Map View 76x50 Tactical HUD 1 Map Filters NONE Filters NONE Steam 1 RUN: 79b01d20-e7d8-44d6-977f-fba1169ac845